{"text_format":"1","workbook":"xlsx","n_sheets":11,"sheets":["Stammdaten","Juniorinnen","Junioren","Männer","Frauen","Seniorinnen A","Seniorinnen B","Seniorinnen C","Senioren A","Senioren B","Senioren C"],"not_rendered":{"charts":0,"images":1,"macros":1,"external_links":0,"defined_names":21,"comments":10,"pivot_tables":0},"unopened":[],"bounds":{"document_bytes":16777216,"sheet_cells":100000,"rows_first":2000,"rows_last":500,"rows_between":2000,"halvings":0,"cell_chars":16384,"cell_head_chars":4096},"cells_cut":0,"cells_raw":0,"read":"whole","date_system":"1900"}

{"sheet":"Stammdaten","index":0,"n_rows":22,"n_cols":9,"rows_kept":22,"cut":false,"hidden":false,"merged":[[4,3,4,8]]}
[]
["Kreiseinzelmeisterschaften - Vorrunde - Stammdaten"]
["Version:","3.0"]
[]
[null,"Achtung: Alle Angaben werden übernommen! Sollen in einigen Bereichen andere Daten angezeigt werden müssen diese manuell eingegeben werden.",null,"Bitte die Datenverarbeitungsangaben eingeben! Bitte in die Spalte \"Endlaufteilnehmer\" die Anzahl der Startplätze in der Endrunde eintragen."]
[]
["Veranstalter:","Kegelkreis Saale-Orla",null,"Nr.","Titel / Altersklasse","Ort","Endlaufteilnehmer","Datum Endlauf","Ort Endlauf"]
[null,null,null,1,"Juniorinnen",null,null,"15. April 2023","Bad Lobenstein"]
["Eventname:","Kreiseinzelmeisterschaften Vorrunde",null,2,"Junioren",null,null,"15. April 2023","Bad Lobenstein"]
["Jahr: ",2023,null,3,"Männer",null,null,"15. April 2023","Bad Lobenstein"]
["Region: ","Saale-Orla-Kreis",null,4,"Frauen",null,null,"15. April 2023","Bad Lobenstein"]
[null,null,null,5,"Seniorinnen B",null,4,"01.April 2023","Bad Lobenstein"]
[null,null,null,6,"Seniorinnen A",null,4,"01.April 2023","Bad Lobenstein"]
["Ort, Datum:","KKSO ,den 10.03.2022",null,7,"Senioren B",null,8,"01.April 2023","Bad Lobenstein"]
[null,null,null,8,"Senioren A","Neustadt",8,"01.April 2023","Bad Lobenstein"]
[null,null,null,9,"Senioren C",null,4,"01.April 2023","Bad Lobenstein"]
[null,null,null,10,"Seniorinnen C",null,4,"01.April 2023","Bad Lobenstein"]
[null,null,null,null,null,null,52]
[]
[]
[]
[null,null,null,null,"V 16022023"]

{"sheet":"Juniorinnen","index":1,"n_rows":59,"n_cols":21,"rows_kept":59,"cut":false,"hidden":true,"merged":[[7,9,7,12],[0,0,0,15],[7,6,7,8],[4,6,4,11],[4,2,4,4],[5,0,5,2]]}
[{"$f":"Stammdaten!B7","v":"Kegelkreis Saale-Orla"},null,null,null,null,null,null,null,null,null,null,null,null,null,null,null,{"$f":"\"A1:O\"&COUNTIF(F$1:F$166,\">\"\"\")+7","v":"A1:O14"},"Automatischer Druckbereich"]
[{"$f":"CONCATENATE(Stammdaten!B9,\" \",Stammdaten!B10)","v":"Kreiseinzelmeisterschaften Vorrunde 2023"}]
[]
[1,".    Altersklasse: ",null,null,null,{"$f":"VLOOKUP(A4,Stammdaten!D8:G15,2,1)","v":"Juniorinnen"}]
[null,"Ort:","Ranis",null,null,"Verantwortlicher:","KSV Ranis"]
["2022-04-02",null,null,null,null,"der Endlauf findet am 09.+10.April 2022 in Wernburg statt."]
[]
["Nr:","Zeit","B","Vorname","Name","Verein","Kontrolle",null,null,"Vorlauf",null,null,null,"E","Platz","PlatzPunkte",null,"Eingabe bitte wiefolgt:"]
[null,null,null,null,null,null,"P","K","W","Volle.","Abr.","Ges.","F.",{"$f":"VLOOKUP(A4,Stammdaten!D8:G17,4,1)","v":0},null,null,null,"1. Volle"]
[1,"09:10:00",2,null,null,"Krölpa",null,null,null,null,{"$f":"L10-J10","v":0},null,1,{"$f":"IF(O10=\"\",\"\",IF(($N$9-RANK(O10,$O$10:$O$57,1))<0,\"\",\"X\"))","v":""},{"$f":"Männer!O10","v":""},{"$f":"IF(L10=\"\",\"\",RANK(L10,$L$10:$L$57,1)*10000+RANK(K10,$K$10:$K$57,1)*100+RANK(M10,$M$10:$M$57,0))","v":""},null,"2. Gesamt! (Abräumer wird automatisch berechnet!!!)"]
[2,"09:10:00",1,null,null,"Krölpa",null,null,null,null,{"$f":"L11-J11","v":0},null,null,"",{"$f":"Männer!O11","v":""},"",null,"3. FW"]
[3,"12:40:00",2,null,null,"Neustadt",null,null,null,null,0,null,null,"",{"$f":"Männer!O12","v":""},""]
[null,null,null,null,null,null,null,null,null,null,0,null,null,"",{"$f":"Männer!O13","v":""},""]
[null,null,null,null,null,null,null,null,null,null,0,null,null,"",{"$f":"Männer!O14","v":""},""]
[null,null,null,null,null,null,null,null,null,null,0,null,null,"",{"$f":"Männer!O15","v":""},""]
[null,null,null,null,null,null,null,null,null,null,0,null,null,"",{"$f":"Männer!O16","v":""},""]
[null,null,null,null,null,null,null,null,null,null,0,null,null,"",{"$f":"Männer!O17","v":""},"",null,null," "]
[null,null,null,null,null,null,null,null,null,null,0,null,null,"",{"$f":"Männer!O18","v":""},""]
[null,null,null,null,null,null,null,null,null,null,0,null,null,"",{"$f":"Männer!O19","v":""},""]
[null,null,null,null,null,null,null,null,null,null,0,null,null,"",{"$f":"Männer!O20","v":""},""]
[null,null,null,null,null,null,null,null,null,null,0,null,null,"",{"$f":"Männer!O21","v":""},""]
[null,null,null,null,null,null,null,null,null,null,0,null,null,"",{"$f":"Männer!O22","v":""},""]
[null,null,null,null,null,null,null,null,null,null,0,null,null,"",{"$f":"Männer!O23","v":""},""]
[null,null,null,null,null,null,null,null,null,null,0,null,null,"",{"$f":"Männer!O24","v":""},""]
[null,null,null,null,null,null,null,null,null,null,0,null,null,"",{"$f":"Männer!O25","v":""},""]
[null,null,null,null,null,null,null,null,null,null,0,null,null,"",{"$f":"Männer!O26","v":""},""]
[null,null,null,null,null,null,null,null,null,null,0,null,null,"",{"$f":"Männer!O27","v":""},""]
[null,null,null,null,null,null,null,null,null,null,0,null,null,"",{"$f":"Männer!O28","v":""},""]
[null,null,null,null,null,null,null,null,null,null,0,null,null,"",{"$f":"Männer!O29","v":""},""]
[null,null,null,null,null,null,null,null,null,null,0,null,null,"",{"$f":"Männer!O30","v":""},""]
[null,null,null,null,null,null,null,null,null,null,0,null,null,"",{"$f":"Männer!O31","v":""},""]
[null,null,null,null,null,null,null,null,null,null,0,null,null,"",{"$f":"Männer!O32","v":""},""]
[null,null,null,null,null,null,null,null,null,null,0,null,null,"",{"$f":"Männer!O33","v":""},""]
[null,null,null,null,null,null,null,null,null,null,0,null,null,"",{"$f":"Männer!O34","v":""},""]
[null,null,null,null,null,null,null,null,null,null,0,null,null,"",{"$f":"Männer!O35","v":""},""]
[null,null,null,null,null,null,null,null,null,null,0,null,null,"",{"$f":"Männer!O36","v":""},""]
[null,null,null,null,null,null,null,null,null,null,0,null,null,"",{"$f":"Männer!O37","v":""},""]
[null,null,null,null,null,null,null,null,null,null,0,null,null,"",{"$f":"Männer!O38","v":""},""]
[null,null,null,null,null,null,null,null,null,null,0,null,null,"",{"$f":"Männer!O39","v":""},""]
[null,null,null,null,null,null,null,null,null,null,0,null,null,"",{"$f":"Männer!O40","v":""},""]
[null,null,null,null,null,null,null,null,null,null,0,null,null,"",{"$f":"Männer!O41","v":""},"",null,null,null,null,","]
[null,null,null,null,null,null,null,null,null,null,0,null,null,"",{"$f":"Männer!O42","v":""},""]
[null,null,null,null,null,null,null,null,null,null,0,null,null,"",{"$f":"Männer!O43","v":""},""]
[null,null,null,null,null,null,null,null,null,null,0,null,null,"",{"$f":"Männer!O44","v":""},""]
[null,null,null,null,null,null,null,null,null,null,0,null,null,"",{"$f":"Männer!O45","v":""},""]
[null,null,null,null,null,null,null,null,null,null,0,null,null,"",{"$f":"Männer!O46","v":""},""]
[null,null,null,null,null,null,null,null,null,null,0,null,null,"",{"$f":"Männer!O47","v":""},""]
[null,null,null,null,null,null,null,null,null,null,0,null,null,"",{"$f":"Männer!O48","v":""},""]
[null,null,null,null,null,null,null,null,null,null,0,null,null,"",{"$f":"Männer!O49","v":""},""]
[null,null,null,null,null,null,null,null,null,null,0,null,null,"",{"$f":"Männer!O50","v":""},""]
[null,null,null,null,null,null,null,null,null,null,0,null,null,"",{"$f":"Männer!O51","v":""},""]
[null,null,null,null,null,null,null,null,null,null,0,null,null,"",{"$f":"Männer!O52","v":""},""]
[null,null,null,null,null,null,null,null,null,null,0,null,null,"",{"$f":"Männer!O53","v":""},""]
[null,null,null,null,null,null,null,null,null,null,0,null,null,"",{"$f":"Männer!O54","v":""},""]
[null,null,null,null,null,null,null,null,null,null,0,null,null,"",{"$f":"Männer!O55","v":""},""]
[null,null,null,null,null,null,null,null,null,null,0,null,null,"",{"$f":"Männer!O56","v":""},""]
[null,null,null,null,null,null,null,null,null,null,0,null,null,"",{"$f":"Männer!O57","v":""},""]
[null,null,null,null,null,null,null,null,null,null,null,null,null,""]
["Bemerkungen:"]

{"sheet":"Junioren","index":2,"n_rows":58,"n_cols":21,"rows_kept":58,"cut":false,"hidden":true,"merged":[[7,9,7,12],[0,0,0,15],[7,6,7,8],[4,6,4,11],[4,2,4,4],[5,0,5,2]]}
[{"$f":"Stammdaten!B7","v":"Kegelkreis Saale-Orla"},null,null,null,null,null,null,null,null,null,null,null,null,null,null,null,{"$f":"\"A1:O\"&COUNTIF(F$1:F$165,\">\"\"\")+7","v":"A1:O21"},"Automatischer Druckbereich"]
[{"$f":"CONCATENATE(Stammdaten!B9,\" \",Stammdaten!B10)","v":"Kreiseinzelmeisterschaften Vorrunde 2023"}]
[]
[2,".    Altersklasse: ",null,null,null,{"$f":"VLOOKUP(A4,Stammdaten!D8:G15,2,1)","v":"Junioren"}]
[null,"Ort:","Ranis",null,null,"Verantwortlicher:","KSV Ranis"]
["2022-04-02",null,null,"der Endlauf findet am 09.+10.April 2022 in Wernburg   statt","am 09.+10.April 2022 in Wernburg",null,"statt"]
[]
["Nr:","Zeit","B","Vorname","Name","Verein","Kontrolle",null,null,"Vorlauf",null,null,null,"E","Platz","PlatzPunkte",null,null,null,null,"Eingabe bitte wiefolgt:"]
[null,null,null,null,null,null,"P","K","W","Volle.","Abr.","Ges.","F.",{"$f":"VLOOKUP(A4,Stammdaten!D8:G17,4,1)","v":0},null,null,null,null,null,null,"1. Volle"]
[1,"08.00",1,null,null,"Pößneck",null,null,null,null,{"$f":"L10-J10","v":0},null,null,{"$f":"IF(O10=\"\",\"\",IF(($N$9-RANK(O10,$O$10:$O$56,1))<0,\"\",\"X\"))","v":""},{"$f":"IF(P10=\"\",\"\",RANK(P10,$P$10:$P$56,0))","v":""},{"$f":"IF(L10=\"\",\"\",RANK(L10,$L$10:$L$56,1)*10000+RANK(K10,$K$10:$K$56,1)*100+RANK(M10,$M$10:$M$56,0))","v":""},null,null,null,null,"2. Gesamt! (Abräumer wird automatisch berechnet!!!)"]
[2,"08.00",2,null,null,"Krölpa",null,null,null,null,{"$f":"L11-J11","v":0},null,null,{"$f":"IF(O11=\"\",\"\",IF(($N$9-RANK(O11,$O$10:$O$56,1))<0,\"\",\"X\"))","v":""},{"$f":"IF(P11=\"\",\"\",RANK(P11,$P$10:$P$56,0))","v":""},"",null,null,null,null,"3. FW"]
[3,"10:20:00",1,null,null,"Ranis",null,null,null,null,0,null,null,"","",""]
[4,"10:20:00",2,null,null,"Neustadt ",null,null,null,null,0,null,null,"","",""]
[5,"11:30:00",1,null,null,"Ranis",null,null,null,null,0,null,null,"","",""]
[6,"11:30:00",2,null,null,"Pößneck",null,null,null,null,0,null,null,"","",""]
[7,"12:40:00",1,null,null,"Pößneck",null,null,null,null,0,null,null,"","",""]
[8,"13:50:00",1,null,null,"Pößneck",null,null,null,null,0,null,null,"","",""]
[9,"13:50:00",2,null,null,"Gefell",null,null,null,null,0,null,null,"","",""]
[10,"15:00:00",1,null,null,"Triptis",null,null,null,null,0,null,null,"","",""]
[11,"15:00:00",2,null,null,"Triptis"," ",null,null,null,0,null,null,"","",""]
[null,null,null,null,null,null,null,null,null,null,0,null,null,"","",""]
[null,null,null,null,null,null,null,null,null,null,0,null,null,"","",""]
[null,null,null,null,null,null,null,null,null,null,0,null,null,"","",""]
[null,null,null,null,null,null,null,null,null,null,0,null,null,"","",""]
[null,null,null,null,null,null,null,null,null,null,0,null,null,"","",""]
[null,null,null,null,null,null,null,null,null,null,0,null,null,"","",""]
[null,null,null,null,null,null,null,null,null,null,0,null,null,"","",""]
[null,null,null,null,null,null,null,null,null,null,0,null,null,"","",""]
[null,null,null,null,null,null,null,null,null,null,0,null,null,"","",""]
[null,null,null,null,null,null,null,null,null,null,0,null,null,"","",""]
[null,null,null,null,null,null,null,null,null,null,0,null,null,"","",""]
[null,null,null,null,null,null,null,null,null,null,0,null,null,"","",""]
[null,null,null,null,null,null,null,null,null,null,0,null,null,"","",""]
[null,null,null,null,null,null,null,null,null,null,0,null,null,"","",""]
[null,null,null,null,null,null,null,null,null,null,0,null,null,"","",""]
[null,null,null,null,null,null,null,null,null,null,0,null,null,"","",""]
[null,null,null,null,null,null,null,null,null,null,0,null,null,"","",""]
[null,null,null,null,null,null,null,null,null,null,0,null,null,"","",""]
[null,null,null,null,null,null,null,null,null,null,0,null,null,"","",""]
[null,null,null,null,null,null,null,null,null,null,0,null,null,"","","",null,null,null,null,","]
[null,null,null,null,null,null,null,null,null,null,0,null,null,"","",""]
[null,null,null,null,null,null,null,null,null,null,0,null,null,"","",""]
[null,null,null,null,null,null,null,null,null,null,0,null,null,"","",""]
[null,null,null,null,null,null,null,null,null,null,0,null,null,"","",""]
[null,null,null,null,null,null,null,null,null,null,0,null,null,"","",""]
[null,null,null,null,null,null,null,null,null,null,0,null,null,"","",""]
[null,null,null,null,null,null,null,null,null,null,0,null,null,"","",""]
[null,null,null,null,null,null,null,null,null,null,0,null,null,"","",""]
[null,null,null,null,null,null,null,null,null,null,0,null,null,"","",""]
[null,null,null,null,null,null,null,null,null,null,0,null,null,"","",""]
[null,null,null,null,null,null,null,null,null,null,0,null,null,"","",""]
[null,null,null,null,null,null,null,null,null,null,0,null,null,"","",""]
[null,null,null,null,null,null,null,null,null,null,0,null,null,"","",""]
[null,null,null,null,null,null,null,null,null,null,0,null,null,"","",""]
[null,null,null,null,null,null,null,null,null,null,0,null,null,"","",""]
[null,null,null,null,null,null,null,null,null,null,0,null,null,"","",""]
[null,null,null,null,null,null,null,null,null,null,null,null,null,{"$f":"IF(O57=\"\",\"\",IF(($N$9-RANK(O57,$O$10:$O$56,1))<0,\"\",\"X\"))","v":""}]
["Bemerkungen:"]

{"sheet":"Männer","index":3,"n_rows":58,"n_cols":21,"rows_kept":58,"cut":false,"hidden":true,"merged":[[7,9,7,12],[0,0,0,15],[7,6,7,8],[4,6,4,11],[4,2,4,4],[5,0,5,2]]}
[{"$f":"Stammdaten!B7","v":"Kegelkreis Saale-Orla"},null,null,null,null,null,null,null,null,null,null,null,null,null,null,null,{"$f":"IF(Q2=0,\"A1:O\"&COUNTIF(F$1:F$157,\">\"\"\")+7,Q2)","v":"A1:O59"},"Automatischer Druckbereich"]
[{"$f":"CONCATENATE(Stammdaten!B9,\" \",Stammdaten!B10)","v":"Kreiseinzelmeisterschaften Vorrunde 2023"},null,null,null,null,null,null,null,null,null,null,null,null,null,null,null,"A1:O59"]
[]
[3,".    Altersklasse: ",null,null,null,{"$f":"VLOOKUP(A4,Stammdaten!D8:G15,2,1)","v":"Männer"}]
[null,"Ort:","Neustadt",null,null,"Verantwortlicher:","Germania Neustadt"]
["16.+17.02.19",null,null," der Endlauf findet am 09.+10. April in Wernburg statt."]
[]
["Nr:","Zeit","B","Vorname","Name","Verein","Kontrolle",null,null,"Vorlauf",null,null,null,"E","Platz","PlatzPunkte",null,null,null,null,"Eingabe bitte wiefolgt:"]
[null,null,null,null,null,null,"P","K","W","Volle.","Abr.","Ges.","F.",{"$f":"VLOOKUP(A4,Stammdaten!D8:G17,4,1)","v":0},null,null,null,null,null,null,"1. Volle"]
[1,"08:00:00",1,null,null,"Neustadt",null,null,null,null,{"$f":"L10-J10","v":0},null,null,{"$f":"IF(O10=\"\",\"\",IF(($N$9-RANK(O10,$O$10:$O$57,1))<0,\"\",\"X\"))","v":""},{"$f":"IF(P10=\"\",\"\",RANK(P10,$P$10:$P$57,0))","v":""},{"$f":"IF(L10=\"\",\"\",RANK(L10,$L$10:$L$54,1)*10000+RANK(K10,$K$10:$K$54,1)*100+RANK(M10,$M$10:$M$54,0))","v":""},null,null,null,null,"2. Gesamt (Abräumer wird automatisch berechnet!!!)"]
[2,"08:00:00",2,null,null,"Langenorla",null,null,null,null,{"$f":"L11-J11","v":0},null,null,"","","",null,null,null,null,"3. FW"]
[3,"08:00:00",3,null,null,"SV Pößneck",null,null,null,null,0,null,null,"","",""]
[4,"08:00:00",4,"Sebastian","Günther","Oppurg",null,null,null,null,0,null,null,"","",""]
[5,"09:10:00",1,null,null,"SV Pößneck",null,null,null,null,0,null,null,"","",""]
[6,"09:10:00",2,null,null,"Neustadt",null,null,null,null,0,null,null,"","",""]
[7,"09:10:00",3,null,null,"Langenorla",null,null,null,null,0,null,null,"","",""]
[8,"09:10:00",4,null,null,"SV Pößneck",null,null,null,null,0,null,null,"","","",null,null," "]
[9,"10:20:00",1,"Christian","Zeh","Wernburg",null,null,null,null,0,null,null,"","",""]
[10,"10:20:00",2,null,null,"Neustadt",null,null,null,null,0,null,null,"","",""]
[11,"10:20:00",3,"Daniel","Zeh","Wernburg",null,null,null,null,0,null,null,"","",""]
[12,"10:20:00",4,"Mike","Lange","Gefell",null,null,null,null,0,null,null,"","",""]
[13,"11:30:00",1,"Fabian","Börner","Gefell",null,null,null,null,0,null,null,"","",""]
[14,"11:30:00",2,null,null,"Neustadt",null,null,null,null,0,null,null,"","",""]
[15,"11:30:00",3,"Nico","Fischer","Gefell",null,null,null,null,0,null,null,"","",""]
[16,"11:30:00",4,null,null,"SV Pößneck",null,null,null,null,0,null,null,"","",""]
[17,"12:40:00",1,"Maik","Weiß","Gefell",null,null,null,null,0,null,null,"","",""]
[18,"12:40:00",2,null,null,"SV Pößneck",null,null,null,null,0,null,null,"","",""]
[19,"12:40:00",3,null,null,"Langenorla",null,null,null,null,0,null,null,"","",""]
[20,"12:40:00",4,null,null,"SV Pößneck",null,null,null,null,0,null,null,"","",""]
[21,"13:50:00",1,"Paul","Sommer","Wernburg",null,null,null,null,0,null,null,"","",""]
[22,"13:50:00",2,null,null,"Langenorla",null,null,null,null,0,null,null,"","",""]
[23,"13:50:00",3,null,null,"Ranis",null,null,null,null,0,null,null,"","",""]
[24,"13:50:00",4,"Martin","Müller","Wernburg",null,null,null,null,0,null,null,"","",""]
[25,"15:00:00",1,null,null,"Lobenstein",null,null,null,null,0,null,null,"","",""]
[26,"15:00:00",2,"Hendrik","Scherf","Gahma",null,null,null,null,0,null,null,"","",""]
[27,"15:00:00",3,null,null,"Langenorla",null,null,null,null,0,null,null,"","",""]
[28,"15:00:00",4,null,null,null,null,null,null,null,0,null,null,"","",""]
[29,"16:10:00",1,null,null,"Ranis",null,null,null,null,0,null,null,"","",""]
[30,"16:10:00",2,null,null,"Eliasbrunn",null,null,null,null,0,null,null,"","",""]
[31,"16:10:00",3,null,null,"Ranis",null,null,null,null,0,null,null,"","",""]
[32,"16:10:00",4,null,null,"Eliasbrunn",null,null,null,null,0,null,null,"","","",null,null,null,null,","]
[33,null,null,null,null,null,null,null,null,null,0,null,null,"","",{"$f":"IF(L42=\"\",\"\",RANK(L42,$L$10:$L$54,1)*10000+RANK(K42,$K$10:$K$54,1)*100+RANK(M42,$M$10:$M$54,0))","v":""}]
[34,null,null,null,null,null,null,null,null,null,0,null,null,"","",""]
[35,null,null,null,null,null,null,null,null,null,0,null,null,"","",""]
[36,null,null,null,null,null,null,null,null,null,0,null,null,"","",""]
[null,null,null,null,null,null,null,null,null,null,0,null,null,"","",""]
[37,null,null,null,null,null,null,null,null,null,0,null,null,"","",""]
[38,null,null,null,null,null,null,null,null,null,0,null,null,"","",""]
[39,null,null,null,null,null,null,null,null,null,0,null,null,"","",""]
[40,null,null,null,null,null,null,null,null,null,0,null,null,"","",""]
[41,null,null,null,null,null,null,null,null,null,0,null,null,"","",""]
[42,null,null,null,null,null,null,null,null,null,0,null,null,"","",""]
[43,null,null,null,null,null,null,null,null,null,0,null,null,"","",""]
[44,null,null,null,null,null,null,null,null,null,0,null,null,"","",""]
[45,null,null,null,null,null,null,null,null,null,0,null,null,"","",""]
[46,null,null,null,null,null,null,null,null,null,0,null,null,"","",""]
[47,null,null,null,null,null,null,null,null,null,0,null,null,"","",""]
[48,null,null,null,null,null,null,null,null,null,0,null,null,"","",""]

{"sheet":"Frauen","index":4,"n_rows":59,"n_cols":25,"rows_kept":59,"cut":false,"hidden":true,"merged":[[7,9,7,12],[0,0,0,15],[7,6,7,8],[4,6,4,11],[4,2,4,4],[5,0,5,2]]}
[{"$f":"Stammdaten!B7","v":"Kegelkreis Saale-Orla"},null,null,null,null,null,null,null,null,null,null,null,null,null,null,null,{"$f":"\"A1:O\"&COUNTIF(F$1:F$166,\">\"\"\")+7","v":"A1:O21"},"Automatischer Druckbereich"]
[{"$f":"CONCATENATE(Stammdaten!B9,\" \",Stammdaten!B10)","v":"Kreiseinzelmeisterschaften Vorrunde 2023"}]
[]
[4,".    Altersklasse: ",null,null,null,{"$f":"VLOOKUP(A4,Stammdaten!D8:G15,2,1)","v":"Frauen"}]
[null,"Ort:","Pößnek",null,null,"Verantwortlicher:","SV Pößneck"]
["2019-02-16",null,null,"der Endlauf findet am 09.+10.April 2022 in Wernburg statt."]
[]
["Nr:","Zeit","B","Vorname","Name","Verein","Kontrolle",null,null,"Vorlauf",null,null,null,"E","Platz","PlatzPunkte",null,null,null,null,"Eingabe bitte wiefolgt:"]
[null,null,null,null,null,null,"P","K","W","Volle.","Abr.","Ges.","F.",{"$f":"VLOOKUP(A4,Stammdaten!D8:G17,4,1)","v":0},null,null,null,null,null,null,"1. Volle"]
[1,"08:00:00",1,null,null,"SV Pößneck",null,null,null,null,{"$f":"L10-J10","v":0},null,null,{"$f":"IF(O10=\"\",\"\",IF(($N$9-RANK(O10,$O$10:$O$57,1))<0,\"\",\"X\"))","v":""},{"$f":"IF(P10=\"\",\"\",RANK(P10,$P$10:$P$57,0))","v":""},{"$f":"IF(L10=\"\",\"\",RANK(L10,$L$10:$L$57,1)*10000+RANK(K10,$K$10:$K$57,1)*100+RANK(M10,$M$10:$M$57,0))","v":""},null,null,null,null,"2. Gesamt (Abräumer wird automatisch berechnet!!!)"]
[2,"08:00:00",2,null,null,"Neustadt",null,null,null,null,{"$f":"L11-J11","v":0},null,null,"","","",null,null,null,null,"3. FW"]
[3,"08:00:00",3,null,null,"Krölpa",null,null,null,null,0,null,null,"","",""]
[4,"08:00:00",4,null,null,"Neustadt",null,null,null,null,0,null,null,"","",""]
[5,"11:30:00",1,null,null,"Grumbach",null,null,null,null,0,null,null,"","","",null,null,null,null,"Änderung 01/04/2022"]
[6,"11:30:00",2,null,null,"Wernburg",null,null,null,null,0,null,null,"","",""]
[7,"11:30:00",3,null,null,"Grumbach",null,null,null,null,0,null,null,"","",""]
[8,"11:30:00",4,null,null,"Neustadt",null,null,null,null,0,null,null,"","","",null,null," "]
[9,"15:00:00",1,null,null,"Wernburg",null,null,null,null,0,null,null,"","",""]
[10,"15:00:00",2,null,null,null,null,null,null,null,0,null,null,"","",""]
[11,"15:00:00",3,null,null,"Gefell",null,null,null,null,0,null,null,"","",""]
[12,"15:00:00",4,null,null,null,null,null,null,null,0,null,null,"","",""]
[13,"16:10:00",1,null,null,"SV Pößneck",null,null,null,null,0,null,null,"","","",null,null,null,null,null,null,null,null,".10"]
[null,null,null,null,null,null,null,null,null,null,0,null,null,"","",""]
[null,null,null,null,null,null,null,null,null,null,0,null,null,"","",""]
[null,null,null,null,null,null,null,null,null,null,0,null,null,"","",""]
[null,null,null,null,null,null,null,null,null,null,0,null,null,"","",""]
[null,null,null,null,null,null,null,null,null,null,0,null,null,"","",""]
[null,null,null,null,null,null,null,null,null,null,0,null,null,"","",""]
[null,null,null,null,null,null,null,null,null,null,0,null,null,"","",""]
[null,null,null,null,null,null,null,null,null,null,0,null,null,"","",""]
[null,null,null,null,null,null,null,null,null,null,0,null,null,"","",""]
[null,null,null,null,null,null,null,null,null,null,0,null,null,"","",""]
[null,null,null,null,null,null,null,null,null,null,0,null,null,"","",""]
[null,null,null,null,null,null,null,null,null,null,0,null,null,"","",""]
[null,null,null,null,null,null,null,null,null,null,0,null,null,"","",""]
[null,null,null,null,null,null,null,null,null,null,0,null,null,"","",""]
[null,null,null,null,null,null,null,null,null,null,0,null,null,"","",""]
[null,null,null,null,null,null,null,null,null,null,0,null,null,"","",""]
[null,null,null,null,null,null,null,null,null,null,0,null,null,"","",""]
[null,null,null,null,null,null,null,null,null,null,0,null,null,"","",""]
[null,null,null,null,null,null,null,null,null,null,0,null,null,"","","",null,null,null,null,","]
[null,null,null,null,null,null,null,null,null,null,0,null,null,"","",""]
[null,null,null,null,null,null,null,null,null,null,0,null,null,"","",""]
[null,null,null,null,null,null,null,null,null,null,0,null,null,"","",""]
[null,null,null,null,null,null,null,null,null,null,0,null,null,"","",""]
[null,null,null,null,null,null,null,null,null,null,0,null,null,"","",""]
[null,null,null,null,null,null,null,null,null,null,0,null,null,"","",""]
[null,null,null,null,null,null,null,null,null,null,0,null,null,"","",""]
[null,null,null,null,null,null,null,null,null,null,0,null,null,"","",""]
[null,null,null,null,null,null,null,null,null,null,0,null,null,"","",""]
[null,null,null,null,null,null,null,null,null,null,0,null,null,"","",""]
[null,null,null,null,null,null,null,null,null,null,0,null,null,"","",""]
[null,null,null,null,null,null,null,null,null,null,0,null,null,"","",""]
[null,null,null,null,null,null,null,null,null,null,0,null,null,"","",""]
[null,null,null,null,null,null,null,null,null,null,0,null,null,"","",""]
[null,null,null,null,null,null,null,null,null,null,0,null,null,"","",""]
[null,null,null,null,null,null,null,null,null,null,0,null,null,"","",""]
[null,null,null,null,null,null,null,null,null,null,null,null,null,""]
["Bemerkungen:"]

{"sheet":"Seniorinnen A","index":5,"n_rows":59,"n_cols":21,"rows_kept":59,"cut":false,"hidden":false,"merged":[[7,9,7,12],[0,0,0,15],[7,6,7,8],[4,6,4,11],[4,2,4,4],[5,0,5,2]]}
[{"$f":"Stammdaten!B7","v":"Kegelkreis Saale-Orla"},null,null,null,null,null,null,null,null,null,null,null,null,null,null,null,{"$f":"\"A1:O\"&COUNTIF(F$1:F$166,\">\"\"\")+7","v":"A1:O17"},"Automatischer Druckbereich"]
[{"$f":"CONCATENATE(Stammdaten!B9,\" \",Stammdaten!B10)","v":"Kreiseinzelmeisterschaften Vorrunde 2023"}]
[]
[6,".    Altersklasse: ",null,null,null,{"$f":"VLOOKUP(A4,Stammdaten!D8:G15,2,1)","v":"Seniorinnen A"}]
[null,"Ort:","Pößneck",null,null,"Verantwortlicher:","1. SV Pößneck"]
[null,null,null,"der Endlauf findet am 01. April 2023 in Bad Lobenstein  statt."]
[]
["Nr:","Zeit","B","Vorname","Name","Verein","Kontrolle",null,null,"Vorlauf",null,null,null,"E","Platz","PlatzPunkte",null,null,null,null,"Eingabe bitte wiefolgt:"]
[null,null,null,null,null,null,"P","K","W","Volle.","Abr.","Ges.","F.",{"$f":"VLOOKUP(A4,Stammdaten!D8:G17,4,1)","v":4},null,null,null,null,null,null,"1. Volle"]
[1,"10:00:00",1,"Veronika","Scholz","Görkwitz",null,null,null,null,{"$f":"L10-J10","v":0},null,null,{"$f":"IF(O10=\"\",\"\",IF(($N$9-RANK(O10,$O$10:$O$57,1))<0,\"\",\"X\"))","v":""},{"$f":"IF(P10=\"\",\"\",RANK(P10,$P$10:$P$57,0))","v":""},{"$f":"IF(L10=\"\",\"\",RANK(L10,$L$10:$L$57,1)*10000+RANK(K10,$K$10:$K$57,1)*100+RANK(M10,$M$10:$M$57,0))","v":""},null,null,null,null,"2. Gesamt (Abräumer wird automatisch berechnet!!!)"]
[2,"10:00:00",2,null,null,"Neustadt",null,null,null,null,{"$f":"L11-J11","v":0},null,null,"","","",null,null,null,null,"3. FW"]
[3,"10:00:00",3,"Christiane","Schwalbe","Zwackau",null,null,null,null,0,null,null,"","",""]
[4,"10:00:00",4,"Veronika","Scholz","Görkwitz",null,null,null,null,0,null,null,"","",""]
[5,"11:10:00",1,"Seniorinnen B",null,null,null,null,null,null,0,null,null,"","",""]
[6,"11:10:00",2,"Seniorinnen B",null,null,null,null,null,null,0,null,null,"","",""]
[7,"11:10:00",3,"Seniorinnen C",null,null,null,null,null,null,0,null,null,"","",""]
[8,"11:10:00",4,"Seniorinnen C",null,null,null,null,null,null,0,null,null,"","","",null,null," "]
[9,"12:20:00",1,"Seniorinnen C",null,null,null,null,null,null,0,null,null,"","",""]
[10,"12:20:00",2,"Gabi","Hochstein","Oppurg ",null,null,null,null,0,null,null,"","",""]
[11,"12:20:00",3,"Seniorinnen B",null,null,null,null,null,null,0,null,null,"","",""]
[12,"12:20:00",4,"Seniorinnen B",null,null,null,null,null,null,0,null,null,"","",""]
[13,"13:30:00",1,"Seniorinnen B",null,null,null,null,null,null,0,null,null,"","",""]
[14,"13:30:00",2,"Seniorinnen B",null,null,null,null,null,null,0,null,null,"","",""]
[15,"13:30:00",3,"Seniorinnen B",null,null,null,null,null,null,0,null,null,"","",""]
[16,"13:30:00",4,"Seniorinnen B",null,null,null,null,null,null,0,null,null,"","",""]
[null,null,null,"Ines","Schmidt","Görkwitz",null,null,null,null,0,null,null,"","",""]
[null,null,null,"Carmen","Plas","1. SV Pößneck",null,null,null,null,0,null,null,"","",""]
[null,null,null,null,null,null,null,null,null,null,0,null,null,"","",""]
[null,null,null,null,null,null,null,null,null,null,0,null,null,"","",""]
[null,null,null,null,null,null,null,null,null,null,0,null,null,"","",""]
[null,null,null,null,null,null,null,null,null,null,0,null,null,"","",""]
[null,null,null,null,null,null,null,null,null,null,0,null,null,"","",""]
[null,null,null,null,null,null,null,null,null,null,0,null,null,"","",""]
[null,null,null,null,null,null,null,null,null,null,0,null,null,"","",""]
[null,null,null,null,null,null,null,null,null,null,0,null,null,"","",""]
[null,null,null,null,null,null,null,null,null,null,0,null,null,"","",""]
[null,null,null,null,null,null,null,null,null,null,0,null,null,"","",""]
[null,null,null,null,null,null,null,null,null,null,0,null,null,"","",""]
[null,null,null,null,null,null,null,null,null,null,0,null,null,"","",""]
[null,null,null,null,null,null,null,null,null,null,0,null,null,"","",""]
[null,null,null,null,null,null,null,null,null,null,0,null,null,"","","",null,null,null,null,","]
[null,null,null,null,null,null,null,null,null,null,0,null,null,"","",""]
[null,null,null,null,null,null,null,null,null,null,0,null,null,"","",""]
[null,null,null,null,null,null,null,null,null,null,0,null,null,"","",""]
[null,null,null,null,null,null,null,null,null,null,0,null,null,"","",""]
[null,null,null,null,null,null,null,null,null,null,0,null,null,"","",""]
[null,null,null,null,null,null,null,null,null,null,0,null,null,"","",""]
[null,null,null,null,null,null,null,null,null,null,0,null,null,"","",""]
[null,null,null,null,null,null,null,null,null,null,0,null,null,"","",""]
[null,null,null,null,null,null,null,null,null,null,0,null,null,"","",""]
[null,null,null,null,null,null,null,null,null,null,0,null,null,"","",""]
[null,null,null,null,null,null,null,null,null,null,0,null,null,"","",""]
[null,null,null,null,null,null,null,null,null,null,0,null,null,"","",""]
[null,null,null,null,null,null,null,null,null,null,0,null,null,"","",""]
[null,null,null,null,null,null,null,null,null,null,0,null,null,"","",""]
[null,null,null,null,null,null,null,null,null,null,0,null,null,"","",""]
[null,null,null,null,null,null,null,null,null,null,0,null,null,"","",""]
[]
["Bemerkungen:"]

{"sheet":"Seniorinnen B","index":6,"n_rows":60,"n_cols":21,"rows_kept":60,"cut":false,"hidden":false,"merged":[[7,9,7,12],[0,0,0,15],[7,6,7,8],[4,6,4,11],[4,2,4,4],[5,0,5,2]]}
[{"$f":"Stammdaten!B7","v":"Kegelkreis Saale-Orla"},null,null,null,null,null,null,null,null,null,null,null,null,null,null,null,{"$f":"\"A1:O\"&COUNTIF(F$1:F$167,\">\"\"\")+7","v":"A1:O18"},"Automatischer Druckbereich"]
[{"$f":"CONCATENATE(Stammdaten!B9,\" \",Stammdaten!B10)","v":"Kreiseinzelmeisterschaften Vorrunde 2023"}]
[]
[5,".    Altersklasse: ",null,null,null,{"$f":"VLOOKUP(A4,Stammdaten!D8:G15,2,1)","v":"Seniorinnen B"}]
[null,"Ort:","Pößneck",null,null,"Verantwortlicher:","1. SV Pößneck"]
[null,null,null,"der Endlauf findet am 01. April 2023 in Bad Lobenstein  statt."]
[]
["Nr:","Zeit","B","Vorname","Name","Verein","Kontrolle",null,null,"Vorlauf",null,null,null,"E","Platz","PlatzPunkte",null,null,null,null,"Eingabe bitte wiefolgt:"]
[null,null,null,null,null,null,"P","K","W","Volle.","Abr.","Ges.","F.",4,null,null,null,null,null,null,"1. Volle"]
[1,"11:10:00",1,null,null,"Neustadt",null,null,null,null,{"$f":"L10-J10","v":0},null,null,{"$f":"IF(O10=\"\",\"\",IF(($N$9-RANK(O10,$O$10:$O$58,1))<0,\"\",\"X\"))","v":""},{"$f":"IF(P10=\"\",\"\",RANK(P10,$P$10:$P$58,0))","v":""},{"$f":"IF(L10=\"\",\"\",RANK(L10,$L$10:$L$58,1)*10000+RANK(K10,$K$10:$K$58,1)*100+RANK(M10,$M$10:$M$58,0))","v":""},null,null,null,null,"2. Gesamt (Abräumer wird automatisch berechnet!!!)"]
[2,"11:10:00",2,"Gabrielle","Kellermann","1. SV Pößneck",null,null,null,null,{"$f":"L11-J11","v":0},null,null,"","","",null,null,null,null,"3. FW"]
[3,"11:10:00",3,"Seniorinnen C",null,null,null,null,null,null,0,null,null,"","",""]
[4,"11:10:00",4,"Seniorinnen C",null,null,null,null,null,null,0,null,null,"","",""]
[5,"12:20:00",1,"Seniorinnen C"]
[6,"12:20:00",2,"Seniorinnen A",null,null,null,null,null,null,0,null,null,"","",""]
[7,"12:20:00",3,null,null,"Neustadt",null,null,null,null,0,null,null,"","",""]
[8,"12:20:00",4,"Sabine","Köcher","Krölpa",null,null,null,null,0,null,null,"","",""]
[9,"13:30:00",1,"Dagmar","Götte","Krölpa",null,null,null,null,0,null,null,"","","",null,null," "]
[10,"13:30:00",2,"Heike","Ungelenk","Krölpa",null,null,null,null,0,null,null,"","",""]
[11,"13:30:00",3,null,null,null,null,null,null,null,0,null,null,"","",""]
[12,"13:30:00",4,"Silvia","Moser","Oppurg",null,null,null,null,0,null,null,"","",""]
[null,null,null,"Spielt","vor","Krölpa",null,null,null,null,0,null,null,"","",""]
[null,null,null,null,null,null,null,null,null,null,0,null,null,"","",""]
[null,null,null,null,null,null,null,null,null,null,0,null,null,"","",""]
[null,null,null,null,null,null,null,null,null,null,0,null,null,"","",""]
[null,null,null,null,null,null,null,null,null,null,0,null,null,"","",""]
[null,null,null,null,null,null,null,null,null,null,0,null,null,"","",""]
[null,null,null,null,null,null,null,null,null,null,0,null,null,"","",""]
[null,null,null,null,null,null,null,null,null,null,0,null,null,"","",""]
[null,null,null,null,null,null,null,null,null,null,0,null,null,"","",""]
[null,null,null,null,null,null,null,null,null,null,0,null,null,"","",""]
[null,null,null,null,null,null,null,null,null,null,0,null,null,"","",""]
[null,null,null,null,null,null,null,null,null,null,0,null,null,"","",""]
[null,null,null,null,null,null,null,null,null,null,0,null,null,"","",""]
[null,null,null,null,null,null,null,null,null,null,0,null,null,"","",""]
[null,null,null,null,null,null,null,null,null,null,0,null,null,"","",""]
[null,null,null,null,null,null,null,null,null,null,0,null,null,"","",""]
[null,null,null,null,null,null,null,null,null,null,0,null,null,"","",""]
[null,null,null,null,null,null,null,null,null,null,0,null,null,"","",""]
[null,null,null,null,null,null,null,null,null,null,0,null,null,"","",""]
[null,null,null,null,null,null,null,null,null,null,0,null,null,"","",""]
[null,null,null,null,null,null,null,null,null,null,0,null,null,"","","",null,null,null,null,","]
[null,null,null,null,null,null,null,null,null,null,0,null,null,"","",""]
[null,null,null,null,null,null,null,null,null,null,0,null,null,"","",""]
[null,null,null,null,null,null,null,null,null,null,0,null,null,"","",""]
[null,null,null,null,null,null,null,null,null,null,0,null,null,"","",""]
[null,null,null,null,null,null,null,null,null,null,0,null,null,"","",""]
[null,null,null,null,null,null,null,null,null,null,0,null,null,"","",""]
[null,null,null,null,null,null,null,null,null,null,0,null,null,"","",""]
[null,null,null,null,null,null,null,null,null,null,0,null,null,"","",""]
[null,null,null,null,null,null,null,null,null,null,0,null,null,"","",""]
[null,null,null,null,null,null,null,null,null,null,0,null,null,"","",""]
[null,null,null,null,null,null,null,null,null,null,0,null,null,"","",""]
[null,null,null,null,null,null,null,null,null,null,0,null,null,"","",""]
[null,null,null,null,null,null,null,null,null,null,0,null,null,"","",""]
[null,null,null,null,null,null,null,null,null,null,0,null,null,"","",""]
[null,null,null,null,null,null,null,null,null,null,0,null,null,"","",""]
[null,null,null,null,null,null,null,null,null,null,0,null,null,"","",""]
[null,null,null,null,null,null,null,null,null,null,null,null,null,""]
["Bemerkungen:"]

{"sheet":"Seniorinnen C","index":7,"n_rows":61,"n_cols":31,"rows_kept":61,"cut":false,"hidden":false,"merged":[[8,9,8,12],[1,0,1,15],[8,6,8,8],[5,6,5,11],[5,2,5,4],[6,0,6,2]]}
[]
[{"$f":"Stammdaten!B7","v":"Kegelkreis Saale-Orla"}]
[{"$f":"CONCATENATE(Stammdaten!B9,\" \",Stammdaten!B10)","v":"Kreiseinzelmeisterschaften Vorrunde 2023"}]
[]
[10,".    Altersklasse: ",null,null,null,{"$f":"VLOOKUP(A5,Stammdaten!D8:G15,2,1)","v":"Senioren A"}]
[null,"Ort:","Pößneck",null,null,"Verantwortlicher:","1. SV Pößneck "]
[null,null,null,null,null,{"$f":"CONCATENATE(\"Der Endlauf findet am \",VLOOKUP(A5,Stammdaten!D8:I17,5,1),\" in \",VLOOKUP(A5,Stammdaten!D8:I17,6,1),\" statt für die Plätze 1 - \",VLOOKUP(A5,Stammdaten!D8:I17,4,1),\".\")","v":"Der Endlauf findet am 01.April 2023 in Bad Lobenstein statt für die Plätze 1 - 4."}]
[]
["Nr:","Zeit","B","Name","Vorname","Verein","Kontrolle",null,null,"Vorlauf",null,null,null,"E","Platz"]
[null,null,null,null,null,null,null,null,null,null,null,null,"F.",4]
[1,"11:10:00",3,"Edeltraut","Stankowski","Görkwitz",null,null,null,null,{"$f":"IF(L11>0,IF(L11=0,0,L11-J11),\"\")","v":""},null,null,{"$f":"IF(O11=\"\",\"\",IF(($N$10-RANK(O11,$O$11:$O$58,1))<0,\"\",\"X\"))","v":""},{"$f":"IF(P11=\"\",\"\",RANK(P11,$P$12:$P$59,0))","v":""}]
[2,"11:10:00",4,"Heidrun","Günther","1. SV Pößneck"]
[3,"12:20:00",1,"Ilona","Jahn","Neustadt"]
[]
[null,null,null,null,null,null,null,null,null,null,null,null,null,null,null,null,null,null,null,null,null,null,null,null,"S"]
[]
[]
[null,null,null,null,null,null,null,null,null,null,null,null,null,null,null,null,null,null," "]
[]
[]
[]
[]
[]
[]
[]
[]
[]
[]
[]
[]
[]
[]
[]
[]
[]
[]
[]
[]
[]
[]
[]
[]
[]
[]
[]
[]
[]
[null,null,null,null,null,null,null,null,null,null,null,null,null,null,null,null,null,null,null,null,null,null,null,null,null,null,null,null,null,null,"t"]
[]
[]
[]
[]
[null,null,null,null,null,null,null,null,null,null,"",null,null,"",""]
[null,null,null,null,null,null,null,null,null,null,"",null,null,"",""]
[null,null,null,null,null,null,null,null,null,null,"",null,null,"",""]
[null,null,null,null,null,null,null,null,null,null,{"$f":"IF(L56>0,IF(L56=0,0,L56-J56),\"\")","v":""},null,null,{"$f":"IF(O56=\"\",\"\",IF(($N$10-RANK(O56,$O$11:$O$58,1))<0,\"\",\"X\"))","v":""},{"$f":"IF(P56=\"\",\"\",RANK(P56,$P$12:$P$59,0))","v":""}]
[]
[]
[]
[]
["Bemerkungen:"]

{"sheet":"Senioren A","index":8,"n_rows":59,"n_cols":21,"rows_kept":59,"cut":false,"hidden":false,"merged":[[7,9,7,12],[0,0,0,15],[7,6,7,8],[4,6,4,11],[5,0,5,2],[4,1,4,4]]}
[{"$f":"Stammdaten!B7","v":"Kegelkreis Saale-Orla"},null,null,null,null,null,null,null,null,null,null,null,null,null,null,null,{"$f":"\"A1:O\"&COUNTIF(F$1:F$166,\">\"\"\")+7","v":"A1:O32"},"Automatischer Druckbereich"]
[{"$f":"CONCATENATE(Stammdaten!B9,\" \",Stammdaten!B10)","v":"Kreiseinzelmeisterschaften Vorrunde 2023"}]
[]
[8,".    Altersklasse: ",null,null,null,{"$f":"VLOOKUP(A4,Stammdaten!D8:G15,2,1)","v":"Senioren A"}]
[null,"Ort :Neustadt / Orla",null,null,null,"Verantwortlicher:","KSV 1990 Neustadt"]
[null,null,null,"der Endlauf findet am 01. April 2023 in Bad Lobenstein statt."]
[]
["Nr:","Zeit","B","Vorname","Name","Verein","Kontrolle",null,null,"Vorlauf",null,null,null,"E","Platz","PlatzPunkte",null,"Eingabe bitte wiefolgt:"]
[null,null,null,null,null,null,"P","K","W","Volle.","Abr.","Ges.","F.",{"$f":"VLOOKUP(A4,Stammdaten!D8:G17,4,1)","v":8},null,null,null,"1. Volle"]
[1,"10:00:00",1,null,null,"Gahma",null,null,null,null,{"$f":"L10-J10","v":0},null,null,{"$f":"IF(O10=\"\",\"\",IF(($N$9-RANK(O10,$O$10:$O$57,1))<0,\"\",\"X\"))","v":""},{"$f":"IF(P10=\"\",\"\",RANK(P10,$P$10:$P$57,0))","v":""},{"$f":"IF(L10=\"\",\"\",RANK(L10,$L$10:$L$57,1)*10000+RANK(K10,$K$10:$K$57,1)*100+RANK(M10,$M$10:$M$57,0))","v":""},null,"2. Gesamt (Abräumer wird automatisch berechnet!!!)"]
[2,"10:00:00",2,"Mirko","Schumann","Triptis",null,null,null,null,0,null,null,"","","",null,"3. FW"]
[3,"10:00:00",3,"Karsten","Leheis","Görkwitz ",null,null,null,null,0,null,null,"","",""]
[4,"10:00:00",4,"Jens","Glöckner","Triptis",null,null,null,null,0,null,null,"","",""]
[5,"11:10:00",1,"Sven","Wunderlich","Gefell",null,null,null,null,0,null,null,"","",""]
[6,"11:10:00",2,"Jörg ","Unfried","Eliasbrunn",null,null,null,null,0,null,null,"","",""]
[7,"11:10:00",3,null,null,"Neustadt ",null,null,null,null,0,null,null,"","",""]
[8,"11:10:00",4,"Thomas","Apel","Ranis",null,null,null,null,0,null,null,"","","",null,null," "]
[9,"12:20:00",1,null,null,"Bahn ist frei",null,null,null,null,0,null,null,"","",""]
[10,"12:20:00",2,null,null,"Ziegenrück",null,null,null,null,0,null,null,"","",""]
[11,"12:20:00",3,"Frank","Ackermann","Eliasbrunn",null,null,null,null,0,null,null,"","",""]
[12,"12:20:00",4,"Jürgen","Wildt","Lobenstein",null,null,null,null,0,null,null,"","",""]
[13,"13:30:00",1,null,null,"Ziegenrück",null,null,null,null,0,null,null,"","",""]
[14,"13:30:00",2,"Jens","Pechmann","Wernburg",null,null,null,null,0,null,null,"","",""]
[15,"13:30:00",3,"Andreas","Krauße","1. SV Pößneck",null,null,null,null,0,null,null,"","",""]
[16,"13:30:00",4,"Andreas","Mangelsdorf","Wernburg",null,null,null,null,0,null,null,"","",""]
[17,"14:40:00",1,null,null,"Ziegenrück",null,null,null,null,0,null,null,"","",""]
[18,"14:40:00",2,"Uwe","Matthes","Oppurg",null,null,null,null,0,null,null,"","",""]
[19,"14:40:00",3,"Holger","Picker","Wernburg",null,null,null,null,0,null,null,"","",""]
[20,"14:40:00",4,null,null,"Neustadt ",null,null,null,null,0,null,null,"","",""]
[21,"15:50:00",1,null,null,"Neustadt ",null,null,null,null,0,null,null,"","",""]
[22,"15:50:00",2,"Andreas","Woydt","Tanna",null,null,null,null,0,null,null,"","",""]
[23,"15:50:00",3,null,null,null,null,null,null,null,0,null,null,"","",""]
[24,"15:50:00",4,null,null,null,null,null,null,null,0,null,null,"","",""]
[25,null,null,null,null,null,null,null,null,null,0,null,null,"","",""]
[26,null,null,null,null,null,null,null,null,null,0,null,null,"","",""]
[27,null,null,null,null,null,null,null,null,null,0,null,null,"","",""]
[28,null,null,null,null,null,null,null,null,null,0,null,null,"","",""]
[29,null,null,null,null,null,null,null,null,null,0,null,null,"","",""]
[30,null,null,null,null,null,null,null,null,null,0,null,null,"","",""]
[31,null,null,null,null,null,null,null,null,null,0,null,null,"","",""]
[32,null,null,null,null,null,null,null,null,null,0,null,null,"","","",null,null,null,null,","]
[33,null,null,null,null,null,null,null,null,null,0,null,null,"","",""]
[34,null,null,null,null,null,null,null,null,null,0,null,null,"","",""]
[35,null,null,null,null,null,null,null,null,null,0,null,null,"","",""]
[36,null,null,null,null,null,null,null,null,null,0,null,null,"","",""]
[null,null,null,null,null,null,null,null,null,null,0,null,null,"","",""]
[null,null,null,null,null,null,null,null,null,null,0,null,null,"","",""]
[null,null,null,null,null,null,null,null,null,null,0,null,null,"","",""]
[null,null,null,null,null,null,null,null,null,null,0,null,null,"","",""]
[null,null,null,null,null,null,null,null,null,null,0,null,null,"","",""]
[null,null,null,null,null,null,null,null,null,null,0,null,null,"","",""]
[null,null,null,null,null,null,null,null,null,null,0,null,null,"","",""]
[null,null,null,null,null,null,null,null,null,null,0,null,null,"","",""]
[null,null,null,null,null,null,null,null,null,null,0,null,null,"","",""]
[null,null,null,null,null,null,null,null,null,null,0,null,null,"","",""]
[null,null,null,null,null,null,null,null,null,null,0,null,null,"","",""]
[null,null,null,null,null,null,null,null,null,null,0,null,null,"","",""]
[]
["Bemerkungen:"]

{"sheet":"Senioren B","index":9,"n_rows":59,"n_cols":18,"rows_kept":59,"cut":false,"hidden":false,"merged":[[7,9,7,12],[0,0,0,15],[7,6,7,8],[4,6,4,11],[4,2,4,4],[5,0,5,2]]}
[{"$f":"Stammdaten!B7","v":"Kegelkreis Saale-Orla"},null,null,null,null,null,null,null,null,null,null,null,null,null,null,null,{"$f":"\"A1:O\"&COUNTIF(F$1:F$166,\">\"\"\")+7","v":"A1:O35"},"Automatischer Druckbereich"]
[{"$f":"CONCATENATE(Stammdaten!B9,\" \",Stammdaten!B10)","v":"Kreiseinzelmeisterschaften Vorrunde 2023"}]
[]
[7,".    Altersklasse: ",null,null,null,{"$f":"VLOOKUP(A4,Stammdaten!D8:G15,2,1)","v":"Senioren B"}]
[null,"Ort:","Wernburg",null,null,"Verantwortlicher:","SV Wernburg "]
[null,null,null,"der Endlauf findet am 01. April 2023 in Bad Lobenstein  statt."]
[]
["Nr:","Zeit","B","Vorname","Name","Verein","Kontrolle",null,null,"Vorlauf",null,null,null,"E","Platz","PlatzPunkte",null,"Eingabe bitte wiefolgt:"]
[null,null,null,null,null,null,"P","K","W","Volle.","Abr.","Ges.","F.",{"$f":"VLOOKUP(A4,Stammdaten!D8:G17,4,1)","v":8},null,null,null,"1. Volle"]
[null,"Freitag 17.02.2023",null,null,null,null,null,null,null,null,{"$f":"L10-J10","v":0},null,null,{"$f":"IF(O10=\"\",\"\",IF(($N$9-RANK(O10,$O$10:$O$57,1))<0,\"\",\"X\"))","v":""},{"$f":"IF(P10=\"\",\"\",RANK(P10,$P$10:$P$57,0))","v":""},{"$f":"IF(L10=\"\",\"\",RANK(L10,$L$10:$L$57,1)*10000+RANK(K10,$K$10:$K$57,1)*100+RANK(M10,$M$10:$M$57,0))","v":""},null,"2. Gesamt (Abräumer wird automatisch berechnet!!!)"]
[1,"16:30:00",1,"Senioren C",null,null,null,null,null,null,0,null,null,{"$f":"IF(O11=\"\",\"\",IF(($N$9-RANK(O11,$O$10:$O$57,1))<0,\"\",\"X\"))","v":""},{"$f":"IF(P11=\"\",\"\",RANK(P11,$P$10:$P$57,0))","v":""},"",null,"3. FW"]
[2,"16:30:00",2,"Senioren C",null,null,null,null,null,null,0,null,null,"","",""]
[3,"16:30:00",3,"Senioren C",null,null,null,null,null,null,0,null,null,"","",""]
[4,"16:30:00",4,"Volker","Hopf","Tanna",null,null,null,null,0,null,null,"","",""]
[5,"17:40:00",1,"Rafael","Caspari","Krölpa",null,null,null,null,0,null,null,"","",""]
[6,"17:40:00",2,null,null,"1.SV Pößneck ",null,null,null,null,0,null,null,"","",""]
[7,"17:40:00",3,"Senioren C",null,null,null,null,null,null,0,null,null,"","",""]
[8,"17:40:00",4,"Senioren C",null,null,null,null,null,null,0,null,null,"","",""]
[null,"Samstag 18.02.2023",null,null,null,null,null,null,null,null,0,null,null,"","",""]
[9,"08:00:00",1,"Peter","Koralewski","Grumbach",null,null,null,null,0,null,null,"","",""]
[10,"08:00:00",2,"Jörg","Bohne","Langenorla",null,null,null,null,0,null,null,"","",""]
[11,"08:00:00",3,"Rajmund","Plewnia","Grumbach ",null,null,null,null,0,null,null,"","",""]
[12,"08:00:00",4,"Günther","Hercher","Wernburg",null,null,null,null,0,null,null,"","",""]
[13,"09:10:00",1,"Jochen","Weiß","Gefell",null,null,null,null,0,null,null,"","",""]
[14,"09:10:00",2,"Holger","Bohm","Lobenstein",null,null,null,null,0,null,null,"","",""]
[15,"09:10:00",3,"Rene","Casper","Oppurg",null,null,null,null,0,null,null,"","",""]
[16,"09:10:00",4,"Hartmut","Grieser","Lobenstein",null,null,null,null,0,null,null,"","",""]
[17,"10:20:00",1,"Senioren C",null,null,null,null,null,null,0,null,null,"","",""]
[18,"10:20:00",2,"Mario","Rauh","Gefell",null,null,null,null,0,null,null,"","",""]
[19,"10:20:00",3,"Henry","Weidermann","Eliasbrunn",null,null,null,null,0,null,null,"","",""]
[20,"10:20:00",4,null,null,"Ziegenrück",null,null,null,null,0,null,null,"","",""]
[21,"11:30:00",1,"Wilfried","Martin","Triptis",null,null,null,null,0,null,null,"","",""]
[22,"11:30:00",2,"Senioren C",null,null,null,null,null,null,0,null,null,"","",""]
[23,"11:30:00",3,"Senioren C",null,null,null,null,null,null,0,null,null,"","",""]
[24,"11:30:00",4,"Senioren C",null,null,null,null,null,null,0,null,null,"","",""]
[25,"12:40:00",1,"Senioren C",null,null,null,null,null,null,0,null,null,"","",""]
[26,"12:40:00",2,"Dieter","Haubold","Görkwitz",null,null,null,null,0,null,null,"","",""]
[27,"12:40:00",3,"Senioren C",null,null,null,null,null,null,0,null,null,"","",""]
[28,"12:40:00",4,"Armin","Schubert","Görkwitz",null,null,null,null,0,null,null,"","",""]
[29,"13:50:00",1,"Wolfgang ","Scholz","1. SV Pößneck",null,null,null,null,0,null,null,"","",""]
[30,"13:50:00",2,"Wolfgang ","Thiele","Krölpa",null,null,null,null,0,null,null,"","",""]
[31,"13:50:00",3,"Senioren C",null,null,null,null,null,null,null,null,null,"","",""]
[32,"13:50:00",4,null,null,"Neustadt",null,null,null,null,0,null,null,"","",""]
[33,"15:00:00",1,"Senioren C",null,null,null,null,null,null,0,null,null,"","",""]
[34,"15:00:00",2,"Senioren C",null,null,null,null,null,null,0,null,null,"","",""]
[35,"15:00:00",3,"Senioren C",null,null,null,null,null,null,0,null,null,"","",""]
[36,"15:00:00",4,null,null,"Neustadt",null,null,null,null,0,null,null,"","",""]
[37,"16:10:00",1,"Peter","Haußner","1. SV Pößneck",null,null,null,null,0,null,null,"","",""]
[38,"16:10:00",2,"Holger","Köchel","Krölpa",null,null,null,null,0,null,null,"","",""]
[39,"16:10:00",3,"Thomas","Frühauf","1. SV Pößneck",null,null,null,null,0,null,null,"","",""]
[40,"16:10:00",4,null,null,"Krölpa",null,null,null,null,0,null,null,"","",""]
[null,null,null,null,null,null,null,null,null,null,0,null,null,"","",""]
[null,null,null,null,null,null,null,null,null,null,0,null,null,"","",""]
[null,null,null,null,null,null,null,null,null,null,0,null,null,"","",""]
[null,null,null,null,null,null,null,null,null,null,{"$f":"L55-J55","v":0},null,null,"","",""]
[null,null,null,null,null,null,null,null,null,null,0,null,null,"","",""]
[null,null,null,null,null,null,null,null,null,null,0,null,null,"","",""]
[]
["Bemerkungen:"]

{"sheet":"Senioren C","index":10,"n_rows":56,"n_cols":21,"rows_kept":56,"cut":false,"hidden":false,"merged":[[7,9,7,12],[0,0,0,15],[7,6,7,8],[4,6,4,11],[4,2,4,4],[5,0,5,2]]}
[{"$f":"Stammdaten!B7","v":"Kegelkreis Saale-Orla"},null,null,null,null,null,null,null,null,null,null,null,null,null,null,null,{"$f":"\"A1:O\"&COUNTIF(F$1:F$163,\">\"\"\")+7","v":"A1:O24"},"Automatischer Druckbereich"]
[{"$f":"CONCATENATE(Stammdaten!B9,\" \",Stammdaten!B10)","v":"Kreiseinzelmeisterschaften Vorrunde 2023"}]
[]
[9,".    Altersklasse: ",null,null,null,{"$f":"VLOOKUP(A4,Stammdaten!D8:G17,2,1)","v":"Senioren C"}]
[null,"Ort:","Wernburg",null,null,"Verantwortlicher:","SV Wernburg"]
[null,null,null,"der Endlauf findet am 01. April 2023 in Bad Lobenstein  statt."]
[]
["Nr:","Zeit","B","Vorname","Name","Verein","Kontrolle",null,null,"Vorlauf",null,null,null,"E","Platz","PlatzPunkte",null,null,null,null,"Eingabe bitte wiefolgt:"]
[null,null,null,null,null,null,"P","K","W","Volle.","Abr.","Ges.","F.",{"$f":"VLOOKUP(A4,Stammdaten!D8:G17,4,1)","v":4},null,null,null,null,null,null,"1. Volle"]
[null,"Freitag 17.02.2023",null,null,null,null,null,null,null,null,{"$f":"L10-J10","v":0},null,null,{"$f":"IF(O10=\"\",\"\",IF(($N$9-RANK(O10,$O$10:$O$57,1))<0,\"\",\"X\"))","v":""},{"$f":"IF(P10=\"\",\"\",RANK(P10,$P$10:$P$57,0))","v":""},{"$f":"IF(L10=\"\",\"\",RANK(L10,$L$10:$L$54,1)*10000+RANK(K10,$K$10:$K$54,1)*100+RANK(M10,$M$10:$M$54,0))","v":""},null,null,null,null,"2. Gesamt! (Abräumer wird automatisch berechnet!!!)"]
[1,"16:30:00",1,"Thomas","Hegner","Tanna",null,null,null,null,0,null,null,{"$f":"IF(O11=\"\",\"\",IF(($N$9-RANK(O11,$O$10:$O$57,1))<0,\"\",\"X\"))","v":""},{"$f":"IF(P11=\"\",\"\",RANK(P11,$P$10:$P$57,0))","v":""},{"$f":"IF(L11=\"\",\"\",RANK(L11,$L$10:$L$54,1)*10000+RANK(K11,$K$10:$K$54,1)*100+RANK(M11,$M$10:$M$54,0))","v":""},null,null,null,null,"3. FW"]
[2,"16:30:00",2,"Horst","Müller","Tanna",null,null,null,null,0,null,null,"","",{"$f":"IF(L12=\"\",\"\",RANK(L12,$L$10:$L$54,1)*10000+RANK(K12,$K$10:$K$54,1)*100+RANK(M12,$M$10:$M$54,0))","v":""}]
[3,"16:30:00",3,"Günter","Schaarschmidt","Tanna",null,null,null,null,0,null,null,"",""]
[4,"16:30:00",4,"Senioren B",null,null,null,null,null,null,0,null,null,"","",{"$f":"IF(L14=\"\",\"\",RANK(L14,$L$10:$L$54,1)*10000+RANK(K14,$K$10:$K$54,1)*100+RANK(M14,$M$10:$M$54,0))","v":""}]
[5,"17:40:00",1,"Senioren B",null,null,null,null,null,null,0,null,null,"",""]
[6,"17:40:00",2,"Senioren B",null,null,null,null,null,null,0,null,null,"","",{"$f":"IF(L16=\"\",\"\",RANK(L16,$L$10:$L$54,1)*10000+RANK(K16,$K$10:$K$54,1)*100+RANK(M16,$M$10:$M$54,0))","v":""},null,null," "]
[7,"17:40:00",3,"Erich","Werner","Lobenstein",null,null,null,null,0,null,null,"","",""]
[8,"17:40:00",4,"Bernd","Busch","Lobenstein",null,null,null,null,0,null,null,"","",""]
[null,"Samstag 18.02.2023",null,null,null,null,null,null,null,null,0,null,null,"","",""]
[9,"08:00:00",1,"Senioren B",null,null,null,null,null,null,0,null,null,"","",""]
[10,"08:00:00",2,"Senioren B",null,null,null,null,null,null,0,null,null,"","",""]
[11,"08:00:00",3,"Senioren B",null,null,null,null,null,null,0,null,null,"","",""]
[12,"08:00:00",4,"Senioren B",null,null,null,null,null,null,0,null,null,"","",""]
[13,"09:10:00",1,"Senioren B",null,null,null,null,null,null,0,null,null,"","",""]
[14,"09:10:00",2,"Senioren B",null,null,null,null,null,null,0,null,null,"","",""]
[15,"09:10:00",3,"Senioren B",null,null,null,null,null,null,0,null,null,"","",""]
[16,"09:10:00",4,"Senioren B",null,null,null,null,null,null,0,null,null,"","",""]
[17,"10:20:00",1,"Wolfgang","Nette","Triptis",null,null,null,null,0,null,null,"","",""]
[18,"10:20:00",2,"Senioren B",null,null,null,null,null,null,0,null,null,"","",""]
[19,"10:20:00",3,"Senioren B",null,null,null,null,null,null,0,null,null,"","",""]
[20,"10:20:00",4,"Senioren B",null,null,null,null,null,null,0,null,null,"","",""]
[21,"11:30:00",1,"Senioren B",null,null,null,null,null,null,0,null,null,"","",""]
[22,"11:30:00",2,"Herbert","Rosenau","Krölpa",null,null,null,null,0,null,null,"","",""]
[23,"11:30:00",3,"Manfred","Walther ","Neundorf ",null,null,null,null,0,null,null,"","",""]
[24,"11:30:00",4,"Josef","Walter","Görkwitz",null,null,null,null,0,null,null,"","",""]
[25,"12:40:00",1,"Achim ","Teichmann","Görkwitz",null,null,null,null,0,null,null,"","",""]
[26,"12:40:00",2,"Senioren B",null,null,null,null,null,null,0,null,null,"","",""]
[27,"12:40:00",3,"Jürgen ","Leich","1.SV Pößneck",null,null,null,null,0,null,null,"","",""]
[28,"12:40:00",4,"Senioren B",null,null,null,null,null,null,0,null,null,"","",""]
[29,"13:50:00",1,"Senioren B",null,null,null,null,null,null,0,null,null,"","",""]
[30,"13:50:00",2,"Senioren B",null,null,null,null,null,null,0,null,null,"","",""]
[31,"13:50:00",3,"Eckhard","Thiem","1. SV Pößneck",null,null,null,null,0,null,null,"","",""]
[32,"13:50:00",4,"Senioren B",null,null,null,null,null,null,0,null,null,"","",""]
[33,"15:00:00",1,null,null,"Neustadt",null,null,null,null,0,null,null,"","",""]
[34,"15:00:00",2,null,null,"1. SV Pößneck",null,null,null,null,0,null,null,"","",""]
[35,"15:00:00",3,"Senioren B",null,null,null,null,null,null,0,null,null,"","",""]
[36,"15:00:00",4,"Senioren B",null,null,null,null,null,null,0,null,null,"","",""]
[37,"16:10:00",1,"Senioren B",null,null,null,null,null,null,0,null,null,"","",""]
[38,"16:10:00",2,"Senioren B",null,null,null,null,null,null,0,null,null,"","",""]
[39,"16:10:00",3,"Senioren B",null,null,null,null,null,null,0,null,null,"","",""]
[40,"16:10:00",4,"Senioren B",null,null,null,null,null,null,0,null,null,"","",""]
[42,"17:20:00",1,"Senioren B",null,null,null,null,null,null,0,null,null,"","",""]
[null,null,null,null,null,null,null,null,null,null,0,null,null,"","",""]
[null,null,null,null,null,null,null,null,null,null,0,null,null,"","",""]
[]
["Bemerkungen:"]